lending/lending_fUSD_20260312
["ID","MTS","AMOUNT","RATE_DAILY","PERIOD"]
[408254912,1773322961632,151.0,0.000144,2]
[408254913,1773322965012,-158.0,0.000144,2]
[408254914,1773322965041,-183.0,0.000144,2]
[408254915,1773322988780,174.0,0.000144,2]
[408254921,1773323002265,9144.01,0.000144,2]
[408254922,1773323002292,10000.01,0.000144,2]
[408254923,1773323002315,10000.01,0.000144,2]
[408254924,1773323002336,10000.01,0.000144,2]
[408254925,1773323002367,108150.19082928,0.000144,2]
[408254926,1773323059888,1552.43681819,0.000144,2]
[408254927,1773323143685,3447.57318181,0.00014328,2]
[408254928,1773323143716,127.39481619,0.00014328,2]
[408254929,1773323191557,-158.0,0.000144,2]
[408254930,1773323191581,-180.0,0.000144,2]
[408254931,1773323191604,-2162.0,0.00014401,2]
[408254932,1773323201262,-2838.0,0.00014401,2]
[408254933,1773323201286,-300.0,0.00014402,2]
[408254934,1773323201310,-1200.0,0.00014403,2]
[408254935,1773323201333,-162.0,0.00014403,2]
[408254937,1773323235105,1832.43,0.00014399,2]
[408254938,1773323272300,188.67257488,0.000144,2]
[408254939,1773323292957,-171.0,0.000144,2]
[408254940,1773323292982,-300.0,0.00014403,2]
[408254941,1773323293008,-300.0,0.00014403,2]
[408254942,1773323293032,-300.0,0.00014403,2]
[408254943,1773323293060,-250.0,0.00014404,2]
[408254944,1773323293085,-600.0,0.00014404,2]
[408254945,1773323293111,-600.0,0.00014404,2]
[408254946,1773323293137,-5000.0,0.00014404,2]
[408254947,1773323293163,-300.0,0.00014406,2]
[408254948,1773323293189,-252.14460144,0.00014407,2]
[408254949,1773323293216,-500.0,0.00014413,2]
[408254950,1773323293242,-158.087443,0.0001445,7]
[408254951,1773323293271,-2000.0,0.00014455,2]
[408254952,1773323293299,-429.24779409,0.00014479,2]
[408254996,1773323408040,269.0,0.000144,2]
[408254997,1773323432207,-163.0,0.000144,2]
[408254998,1773323432217,-158.0,0.000144,2]
[408254999,1773323432227,-7608.38,0.00014468,2]
[408255001,1773323432239,-1200.0,0.00014699,2]
[408255003,1773323432254,-600.0,0.000147,2]
[408255005,1773323432264,-250.0,0.00015,2]
[408255007,1773323432273,-250.0,0.00015089,2]
[408255008,1773323432282,-500.0,0.00015167,2]
[408255009,1773323432292,-500.0,0.00015167,2]
[408255010,1773323432301,-500.0,0.00015167,2]
[408255011,1773323432310,-300.0,0.00015178,2]
[408255012,1773323432319,-1000.0,0.00015179,2]
[408255013,1773323432328,-1000.0,0.00015179,2]
[408255014,1773323432338,-300.0,0.00015179,2]
[408255015,1773323432348,-1271.0,0.0001518,2]
[408255016,1773323432357,-313.56,0.0001518,2]
[408255017,1773323432367,-6886.33,0.0001518,2]
[408255018,1773323432377,-999.99,0.0001518,2]
[408255019,1773323432386,-9999.99,0.0001518,2]
[408255020,1773323432396,-150.99,0.0001518,2]
[408255021,1773323432405,-150.99,0.0001518,2]
[408255022,1773323432415,-9999.99,0.0001518,2]
[408255023,1773323432425,-9999.99,0.0001518,2]
[408255024,1773323432438,-307.0,0.00015211,2]
[408255026,1773323432447,-516.9,0.00015211,2]
[408255028,1773323432457,-500.0,0.00015212,2]
[408255030,1773323432466,-150.0,0.00015212,2]
[408255031,1773323432475,-500.0,0.00015212,2]
[408255033,1773323432485,-150.0,0.00015212,2]
[408255035,1773323432494,-621.0,0.00015212,2]
[408255036,1773323432503,-500.0,0.00015212,2]
[408255037,1773323432513,-500.0,0.00015212,2]
[408255038,1773323432523,-150.0,0.00015212,2]
[408255039,1773323432533,-500.0,0.00015212,2]
[408255040,1773323432542,-500.0,0.00015212,2]
[408255041,1773323432552,-150.0,0.00015212,2]
[408255042,1773323432562,-219.59280888,0.00015218,2]
[408255043,1773323432571,-9999.99,0.00015218,2]
[408255044,1773323432580,-9999.99,0.00015218,2]
[408255045,1773323432590,-501.10057062,0.00015222,2]
[408255046,1773323432600,-500.0,0.00015222,2]
[408255047,1773323432609,-500.0,0.00015222,2]
[408255048,1773323432618,-3240.0,0.00015225,2]
[408255049,1773323432627,-296.0,0.00015235,2]
[408255050,1773323432640,-500.0,0.00015267,2]
[408255051,1773323432650,-150.0,0.00015267,2]
[408255052,1773323432659,-500.0,0.00015267,2]
[408255053,1773323432669,-621.0,0.00015267,2]
[408255054,1773323432678,-500.0,0.00015267,2]
[408255055,1773323432687,-500.0,0.00015267,2]
[408255056,1773323432697,-500.0,0.00015267,2]
[408255057,1773323432707,-500.0,0.00015267,2]
[408255058,1773323432717,-500.0,0.00015267,2]
[408255059,1773323432967,-795.0,0.00015272,2]
[408255060,1773323432977,-151.97192574,0.00015277,2]
[408255061,1773323432987,-156.83426636,0.00015277,2]
[408255062,1773323432996,-605.0,0.00015303,2]
[408255063,1773323433006,-150.0,0.00015322,2]
[408255064,1773323433015,-500.0,0.00015322,2]
[408255065,1773323433024,-314.48543571,0.00015322,2]
[408255066,1773323433033,-621.0,0.00015322,2]
[408255067,1773323433043,-500.0,0.00015322,2]
[408255068,1773323433053,-159.8782102,0.00015322,2]
[408255069,1773323433062,-500.0,0.00015322,2]
[408255070,1773323433071,-453.86401705,0.00015322,2]
[408255071,1773323433080,-378.0,0.00015332,2]
[408255072,1773323433089,-1868.0,0.00015333,2]
[408255073,1773323433101,-504.2091639,0.00015341,2]
[408255074,1773323433110,-397.0,0.00015362,2]
[408255075,1773323433118,-275.17021168,0.00015376,2]
[408255076,1773323433127,-500.0,0.00015376,2]
[408255077,1773323433137,-621.0,0.00015376,2]
[408255078,1773323433149,-153.26158094,0.00015376,2]
[408255079,1773323433158,-500.0,0.00015376,2]
[408255080,1773323433168,-150.0,0.00015386,2]
[408255081,1773323433177,-150.0,0.00015386,2]
[408255082,1773323433186,-150.0,0.00015386,2]
[408255083,1773323433196,-150.0,0.00015386,2]
[408255084,1773323433205,-500.0,0.00015386,2]
[408255085,1773323433214,-150.0,0.00015386,2]
[408255086,1773323433223,-211.07,0.00015386,2]
[408255087,1773323433232,-1626.0,0.00015406,2]
[408255088,1773323433244,-152.0,0.00015409,2]
[408255089,1773323433254,-270.35,0.00015423,2]
[408255090,1773323433263,-177.62322685,0.00015431,2]
[408255091,1773323433272,-621.0,0.00015431,2]
[408255092,1773323433283,-500.0,0.00015431,2]
[408255093,1773323433292,-1730.0,0.00015437,2]
[408255094,1773323433301,-150.36304931,0.00015441,2]
[408255095,1773323433311,-150.5231356,0.00015441,2]
[408255096,1773323433320,-151.17604602,0.00015441,2]
[408255097,1773323433330,-150.0,0.00015441,2]
[408255098,1773323433339,-506.37193097,0.00015441,2]
[408255099,1773323433348,-206.99792004,0.00015441,2]
[408255100,1773323433358,-943.0,0.00015467,2]
[408255101,1773323433367,-200.0,0.00015474,2]
[408255102,1773323433377,-236.39195199,0.00015474,2]
[408255103,1773323433386,-150.0,0.00015483,2]
[408255104,1773323433395,-500.0,0.00015483,2]
[408255105,1773323433404,-500.0,0.00015483,2]
[408255106,1773323433414,-500.0,0.00015483,2]
[408255107,1773323433424,-500.0,0.00015483,2]
[408255108,1773323433434,-500.0,0.00015483,2]
[408255109,1773323433444,-500.0,0.00015483,2]
[408255110,1773323433454,-150.0,0.00015483,2]
[408255111,1773323433464,-500.0,0.00015483,2]
[408255112,1773323433475,-500.0,0.00015483,2]
[408255113,1773323433484,-500.0,0.00015483,2]
[408255114,1773323433494,-500.0,0.00015483,2]
[408255115,1773323433504,-500.0,0.00015483,2]
[408255116,1773323433513,-621.0,0.00015486,2]
[408255117,1773323433523,-450.0,0.00015486,2]
[408255118,1773323433532,-31480.51201043,0.00015493,2]
[408255119,1773323433542,-150.0,0.00015496,2]
[408255120,1773323433563,-150.0,0.00015538,2]
[408255121,1773323433573,-500.0,0.00015538,2]
[408255122,1773323433583,-500.0,0.00015538,2]
[408255123,1773323433593,-500.0,0.00015538,2]
[408255124,1773323433604,-500.0,0.00015538,2]
[408255125,1773323433613,-500.0,0.00015538,2]
[408255126,1773323433623,-500.0,0.00015538,2]
[408255127,1773323433633,-150.0,0.00015538,2]
[408255128,1773323433643,-500.0,0.00015538,2]
[408255129,1773323433652,-637.81160901,0.00015538,2]
[408255130,1773323433662,-500.0,0.00015538,2]
[408255131,1773323433672,-600.74757442,0.00015538,2]
[408255132,1773323433682,-500.0,0.00015538,2]
[408255133,1773323433692,-621.0,0.00015541,2]
[408255134,1773323433702,-572.20979604,0.00015572,2]
[408255135,1773323433711,-14305.30884849,0.00015572,2]
[408255136,1773323433727,-8170.22604099,0.00015572,2]
[408255137,1773323433737,-500.0,0.00015573,2]
[408255138,1773323433747,-500.0,0.00015573,2]
[408255139,1773323433758,-500.0,0.00015573,2]
[408255140,1773323433767,-500.0,0.00015573,2]
[408255141,1773323433777,-500.0,0.00015573,2]
[408255142,1773323433787,-500.42269265,0.00015573,2]
[408255143,1773323433797,-150.0,0.00015593,2]
[408255144,1773323433806,-500.0,0.00015593,2]
[408255145,1773323433817,-500.0,0.00015593,2]
[408255146,1773323433827,-500.0,0.00015593,2]
[408255147,1773323433837,-500.0,0.00015593,2]
[408255148,1773323433848,-500.0,0.00015593,2]
[408255149,1773323433858,-500.0,0.00015593,2]
[408255150,1773323433868,-150.0,0.00015593,2]
[408255151,1773323433879,-500.0,0.00015593,2]
[408255152,1773323433889,-601.04601421,0.00015593,2]
[408255153,1773323433899,-464.03452957,0.00015593,2]
[408255154,1773323433911,-35.96547043,0.00015593,2]
[408255155,1773323433921,-621.0,0.00015596,2]
[408255156,1773323433931,-1663.45683321,0.000156,2]
[408255157,1773323433941,-4470.9760901,0.000156,2]
[408255158,1773323433951,-4056.51142571,0.000156,2]
[408255159,1773323433960,-191.66997441,0.000156,2]
[408255160,1773323433970,-260.62120199,0.000156,2]
[408255161,1773323433980,-275.50650545,0.000156,2]
[408255162,1773323433990,-283.41093988,0.000156,2]
[408255163,1773323434000,-157.33875198,0.000156,2]
[408255164,1773323434011,-182.63362167,0.000156,2]
[408255165,1773323434021,-175.53628403,0.000156,2]
[408255166,1773323434030,-193.73381608,0.000156,2]
[408255167,1773323434040,-700.0,0.00015601,7]
[408255168,1773323434051,-700.0,0.00015601,7]
[408255169,1773323434061,-700.0,0.00015601,7]
[408255170,1773323434070,-700.0,0.00015601,7]
[408255171,1773323434080,-700.0,0.00015601,7]
[408255172,1773323434094,-560.0,0.00015601,7]
[408255173,1773323434106,-205.57005763,0.00015647,2]
[408255174,1773323434116,-500.0,0.00015647,2]
[408255175,1773323434126,-398.99053488,0.00015647,2]
[408255176,1773323434137,-500.0,0.00015647,2]
[408255177,1773323434148,-500.0,0.00015647,2]
[408255178,1773323434159,-500.0,0.00015647,2]
[408255179,1773323434169,-500.0,0.00015647,2]
[408255180,1773323434179,-150.0,0.00015647,2]
[408255181,1773323434189,-500.0,0.00015647,2]
[408255182,1773323434199,-500.0,0.00015647,2]
[408255183,1773323434209,-748.66294326,0.0001565,2]
[408255184,1773323434219,-621.0,0.0001565,2]
[408255185,1773323434228,-500.0,0.00015659,2]
[408255186,1773323434241,-500.0,0.00015659,2]
[408255187,1773323434251,-500.0,0.00015659,2]
[408255188,1773323434261,-500.0,0.00015659,2]
[408255189,1773323434272,-500.0,0.00015659,2]
[408255190,1773323434283,-500.0,0.00015659,2]
[408255191,1773323434293,-500.0,0.00015659,2]
[408255192,1773323434302,-500.0,0.00015659,2]
[408255193,1773323434313,-500.0,0.00015659,2]
[408255194,1773323434322,-500.0,0.00015659,2]
[408255195,1773323434331,-500.0,0.00015659,2]
[408255196,1773323434341,-500.0,0.00015659,2]
[408255197,1773323434353,-500.0,0.00015659,2]
[408255198,1773323434363,-500.0,0.00015659,2]
[408255199,1773323434372,-458.87101739,0.00015659,2]
[408255200,1773323434384,-41.12898261,0.00015659,2]
[408255201,1773323434394,-500.0,0.00015659,2]
[408255202,1773323434403,-500.0,0.00015659,2]
[408255203,1773323434413,-426.36800609,0.00015659,2]
[408255204,1773323434423,-500.0,0.00015659,2]
[408255205,1773323434432,-500.0,0.00015659,2]
[408255206,1773323434442,-500.0,0.00015659,2]
[408255207,1773323434451,-500.0,0.00015659,2]
[408255208,1773323434461,-500.0,0.00015659,2]
[408255209,1773323434471,-500.0,0.00015659,2]
[408255210,1773323434483,-500.0,0.00015659,2]
[408255211,1773323434496,-500.0,0.00015659,2]
[408255212,1773323434506,-500.0,0.00015659,2]
[408255213,1773323434516,-500.0,0.00015659,2]
[408255214,1773323434525,-500.0,0.00015659,2]
[408255215,1773323434535,-500.0,0.00015659,2]
[408255216,1773323434546,-500.0,0.00015659,2]
[408255217,1773323434555,-500.0,0.00015659,2]
[408255218,1773323434565,-500.0,0.00015659,2]
[408255219,1773323434574,-500.0,0.00015659,2]
[408255220,1773323434584,-500.0,0.00015659,2]
[408255221,1773323434593,-500.0,0.00015659,2]
[408255222,1773323434604,-540.49254031,0.00015659,2]
[408255223,1773323434614,-500.0,0.00015659,2]
[408255224,1773323434623,-500.0,0.00015659,2]
[408255225,1773323434633,-500.0,0.00015659,2]
[408255226,1773323434643,-500.0,0.00015659,2]
[408255227,1773323434653,-500.0,0.00015659,2]
[408255228,1773323434663,-234.38004948,0.00015659,2]
[408255229,1773323434674,-500.0,0.00015659,2]
[408255230,1773323434684,-500.0,0.00015659,2]
[408255231,1773323434694,-522.41107292,0.00015659,2]
[408255232,1773323434704,-101263.758606,0.0001566,2]
[408255233,1773323434716,-42621.35425182,0.0001566,2]
[408255234,1773323434744,-6957.45202423,0.0001566,2]
[408255235,1773323434756,-12216.27088752,0.0001566,2]
[408255243,1773323438418,-500.0,0.00015541,2]
[408255244,1773323438427,-500.0,0.00015659,2]
[408255245,1773323438437,-466.38808259,0.00015659,2]
[408255259,1773323440653,-33.61191741,0.00015659,2]
[408255260,1773323440662,-577.99098638,0.00015659,2]
[408255261,1773323440672,-1071363.59063043,0.0001566,2]
[408255262,1773323440681,-500.0,0.00015672,2]
[408255263,1773323440690,-500.0,0.00015672,2]
[408255264,1773323440699,-165.01569282,0.00015673,2]
[408255265,1773323440709,-500.37983606,0.00015673,2]
[408255266,1773323440718,-500.0,0.00015673,2]
[408255267,1773323440727,-500.0,0.00015673,2]
[408255268,1773323440736,-500.0,0.00015673,2]
[408255269,1773323440745,-500.28721314,0.00015673,2]
[408255270,1773323440754,-500.0,0.00015673,2]
[408255271,1773323440763,-500.0,0.00015673,2]
[408255272,1773323440771,-500.0,0.00015673,2]
[408255273,1773323440781,-168.3299599,0.00015673,2]
[408255274,1773323440790,-500.0,0.00015673,2]
[408255275,1773323440799,-164.00773729,0.00015673,2]
[408255276,1773323440808,-500.0,0.00015673,2]
[408255277,1773323440818,-500.0,0.00015673,2]
[408255278,1773323440827,-500.0,0.00015673,2]
[408255279,1773323440837,-854.53726609,0.00015673,2]
[408255280,1773323440847,-1001.0,0.000157,2]
[408255281,1773323440859,-500.0,0.00015702,2]
[408255282,1773323440870,-500.0,0.00015702,2]
[408255283,1773323440879,-500.0,0.00015702,2]
[408255284,1773323440889,-500.0,0.00015702,2]
[408255285,1773323440898,-500.0,0.00015702,2]
[408255286,1773323440907,-150.0,0.00015702,2]
[408255287,1773323440916,-500.0,0.00015702,2]
[408255288,1773323440926,-500.0,0.00015702,2]
[408255290,1773323440935,-621.0,0.00015705,2]
[408255291,1773323440944,-500.0,0.00015757,2]
[408255292,1773323440953,-500.0,0.00015757,2]
[408255293,1773323440962,-150.0,0.00015757,2]
[408255294,1773323440971,-500.0,0.00015757,2]
[408255295,1773323440980,-362.33399582,0.00015757,2]
[408255297,1773323440990,-150.51586392,0.00015757,2]
[408255298,1773323440999,-500.0,0.00015757,2]
[408255300,1773323441008,-500.0,0.00015757,2]
[408255302,1773323441017,-151.0,0.00015757,2]
[408255304,1773323441027,-151.0,0.00015757,2]
[408255305,1773323441036,-1098.39399116,0.00015759,5]
[408255307,1773323441045,-1098.39399116,0.00015759,5]
[408255308,1773323441054,-1098.39399115,0.00015759,5]
[408255309,1773323441063,-500.0,0.00015759,2]
[408255310,1773323441072,-500.0,0.00015759,2]
[408255311,1773323441081,-500.0,0.00015759,2]
[408255312,1773323441090,-500.0,0.00015759,2]
[408255313,1773323441099,-500.0,0.00015759,2]
[408255314,1773323441110,-500.0,0.00015759,2]
[408255315,1773323441120,-500.0,0.00015759,2]
[408255316,1773323441129,-500.0,0.00015759,2]
[408255317,1773323441138,-500.0,0.00015759,2]
[408255318,1773323441147,-500.0,0.00015759,2]
[408255319,1773323441155,-500.0,0.00015759,2]
[408255320,1773323441164,-500.0,0.00015759,2]
[408255321,1773323441173,-500.0,0.00015759,2]
[408255322,1773323441183,-500.0,0.00015759,2]
[408255323,1773323441191,-500.0,0.00015759,2]
[408255324,1773323441200,-500.0,0.00015759,2]
[408255325,1773323441210,-500.0,0.00015759,2]
[408255326,1773323441219,-500.0,0.00015759,2]
[408255327,1773323441228,-374.26461894,0.00015759,2]
[408255328,1773323441238,-500.0,0.00015759,2]
[408255329,1773323441251,-500.0,0.00015759,2]
[408255330,1773323441261,-521.6043228,0.00015759,2]
[408255331,1773323441270,-500.0,0.00015759,2]
[408255332,1773323441281,-500.0,0.00015759,2]
[408255333,1773323441290,-586.04621402,0.00015759,2]
[408255334,1773323441299,-500.0,0.00015759,2]
[408255335,1773323441309,-500.0,0.00015759,2]
[408255336,1773323441319,-500.0,0.00015759,2]
[408255337,1773323441328,-500.0,0.00015759,2]
[408255338,1773323441337,-500.0,0.00015759,2]
[408255339,1773323441347,-500.0,0.00015759,2]
[408255340,1773323441356,-500.0,0.00015759,2]
[408255341,1773323441368,-500.0,0.00015759,2]
[408255342,1773323441377,-500.0,0.00015759,2]
[408255343,1773323441386,-255.96292911,0.00015759,2]
[408255344,1773323441395,-666.0,0.00015759,2]
[408255345,1773323441405,-621.0,0.0001576,2]
[408255346,1773323441414,-371.73960843,0.00015773,2]
[408255347,1773323441423,-500.0,0.00015773,2]
[408255348,1773323441432,-283.69039474,0.00015773,2]
[408255349,1773323441442,-500.0,0.00015773,2]
[408255350,1773323441451,-500.0,0.00015773,2]
[408255351,1773323441460,-500.89524145,0.00015773,2]
[408255352,1773323441469,-502.44343779,0.00015773,2]
[408255353,1773323441478,-500.0,0.00015773,2]
[408255354,1773323441488,-500.0,0.00015773,2]
[408255355,1773323441498,-938.87,0.00015773,2]
[408255356,1773323441508,-420.0,0.00015773,2]
[408255357,1773323441517,-163.0,0.000158,3]
[408255358,1773323441526,-500.0,0.00015812,2]
[408255359,1773323441536,-204.83861542,0.00015812,2]
[408255360,1773323441545,-500.0,0.00015812,2]
[408255361,1773323441554,-500.0,0.00015812,2]
[408255362,1773323441563,-500.0,0.00015812,2]
[408255363,1773323441572,-621.0,0.00015815,2]
[408255364,1773323441581,-500.0,0.00015815,2]
[408255365,1773323441590,-300.0,0.0001584,2]
[408255366,1773323441599,-600.0,0.0001584,2]
[408255367,1773323441611,-5000.0,0.0001584,2]
[408255368,1773323441620,-300.0,0.0001584,2]
[408255369,1773323441629,-5000.0,0.0001584,2]
[408255370,1773323441639,-410.29316939,0.0001584,2]
[408255371,1773323441648,-600.0,0.0001584,2]
[408255372,1773323441657,-5000.0,0.0001584,2]
[408255373,1773323441666,-600.0,0.0001584,2]
[408255374,1773323441676,-2986.29148327,0.0001584,2]
[408255375,1773323441685,-287.27422917,0.00015843,2]
[408255376,1773323441694,-5000.0,0.00015843,2]
[408255377,1773323441703,-300.0,0.00015843,2]
[408255378,1773323441712,-250.0,0.00015843,2]
[408255379,1773323441722,-500.0,0.00015843,2]
[408255380,1773323441731,-600.0,0.00015843,2]
[408255381,1773323441742,-500.0,0.00015867,2]
[408255382,1773323441752,-500.0,0.00015867,2]
[408255383,1773323441762,-500.0,0.00015867,2]
[408255384,1773323441773,-500.0,0.00015867,2]
[408255385,1773323441782,-621.0,0.0001587,2]
[408255386,1773323441791,-500.0,0.00015921,2]
[408255387,1773323441800,-500.0,0.00015921,2]
[408255388,1773323441809,-500.0,0.00015921,2]
[408255389,1773323441818,-500.0,0.00015921,2]
[408255390,1773323441827,-621.0,0.00015924,2]
[408255391,1773323441836,-297.0,0.0001595,2]
[408255392,1773323441846,-870.98,0.00015959,2]
[408255393,1773323441855,-500.0,0.00015976,2]
[408255394,1773323441867,-500.0,0.00015976,2]
[408255395,1773323441876,-500.0,0.00015976,2]
[408255396,1773323441885,-500.0,0.00015976,2]
[408255397,1773323441894,-621.0,0.00015979,2]
[408255398,1773323441904,-31480.51201037,0.0001598,2]
[408255399,1773323441913,-200.0,0.00016022,2]
[408255400,1773323441922,-500.0,0.00016031,2]
[408255401,1773323441931,-336.58574152,0.00016031,2]
[408255402,1773323441940,-267.0,0.00016031,2]
[408255403,1773323441949,-474.0,0.00016031,2]
[408255404,1773323441959,-621.0,0.00016034,2]
[408255405,1773323441969,-679.0,0.00016044,2]
[408255406,1773323441979,-938.87,0.00016047,2]
[408255407,1773323441988,-22475.53488941,0.0001605,2]
[408255408,1773323441997,-500.0,0.00016055,2]
[408255409,1773323442006,-621.0,0.00016089,2]
[408255410,1773323442015,-500.0,0.00016089,2]
[408255411,1773323442024,-9999.99,0.00016116,2]
[408255412,1773323442033,-499.46578139,0.00016121,2]
[408255413,1773323442042,-1000.0,0.00016121,2]
[408255414,1773323442051,-1000.0,0.00016121,2]
[408255415,1773323442060,-1000.0,0.00016121,2]
[408255416,1773323442069,-500.0,0.00016121,2]
[408255417,1773323442079,-621.0,0.00016144,2]
[408255418,1773323442089,-350.0,0.00016164,2]
[408255419,1773323442099,-350.0,0.00016164,2]
[408255420,1773323442110,-350.0,0.00016164,2]
[408255421,1773323442119,-454.95723818,0.00016164,2]
[408255422,1773323442129,-1680.0,0.00016169,2]
[408255423,1773323442138,-619.71855644,0.00016173,2]
[408255424,1773323442147,-621.0,0.00016198,2]
[408255425,1773323442156,-1000.0,0.00016221,2]
[408255426,1773323442166,-1000.0,0.00016221,2]
[408255427,1773323442176,-500.0,0.00016221,2]
[408255428,1773323442185,-1000.0,0.00016221,2]
[408255429,1773323442195,-445.92650306,0.00016221,2]
[408255430,1773323442204,-1000.0,0.00016221,2]
[408255431,1773323442213,-1000.0,0.00016221,2]
[408255432,1773323442223,-1000.0,0.00016221,2]
[408255433,1773323442232,-621.0,0.00016253,2]
[408255434,1773323442242,-2000.0,0.00016262,2]
[408255435,1773323442253,-510.0,0.00016302,2]
[408255436,1773323442262,-621.0,0.00016308,2]
[408255437,1773323442271,-1000.0,0.00016321,2]
[408255438,1773323442280,-1000.0,0.00016321,2]
[408255439,1773323442290,-938.87,0.00016321,2]
[408255440,1773323442299,-621.0,0.00016363,2]
[408255441,1773323442308,-500.0,0.00016363,2]
[408255442,1773323442319,-621.0,0.00016417,2]
[408255443,1773323442328,-150.0,0.00016438,2]
[408255444,1773323442338,-500.0,0.00016438,2]
[408255445,1773323442347,-310.64170081,0.00016448,2]
[408255446,1773323442356,-31480.51201037,0.00016467,2]
[408255447,1773323442366,-621.0,0.00016472,2]
[408255448,1773323442375,-150.0,0.00016493,2]
[408255449,1773323442386,-500.0,0.00016493,2]
[408255450,1773323442395,-181.44918097,0.000165,2]
[408255451,1773323442406,-250.0,0.000165,2]
[408255452,1773323442416,-300.0,0.00016523,2]
[408255453,1773323442425,-22475.53488941,0.00016529,2]
[408255454,1773323442435,-150.0,0.00016548,2]
[408255455,1773323442446,-500.0,0.00016548,2]
[408255456,1773323442456,-200.0,0.0001657,2]
[408255457,1773323442465,-938.87,0.00016595,2]
[408255458,1773323442475,-250.58262965,0.00016602,2]
[408255459,1773323442485,-500.0,0.00016602,2]
[408255460,1773323442498,-500.0,0.00016604,2]
[408255461,1773323442507,-150.0,0.00016604,2]
[408255462,1773323442517,-150.0,0.00016604,2]
[408255463,1773323442528,-150.0,0.00016604,2]
[408255464,1773323442538,-150.0,0.00016604,2]
[408255465,1773323442549,-150.0,0.00016604,2]
[408255466,1773323442562,-154.6362155,0.00016604,2]
[408255467,1773323442573,-500.0,0.00016604,2]
[408255468,1773323442583,-500.0,0.00016604,2]
[408255469,1773323442592,-500.0,0.00016604,2]
[408255470,1773323442602,-150.81923528,0.00016604,2]
[408255471,1773323442613,-420.0,0.00016608,2]
[408255472,1773323442623,-500.0,0.00016637,2]
[408255473,1773323442634,-500.0,0.00016657,2]
[408255474,1773323442644,-500.0,0.00016659,2]
[408255475,1773323442653,-150.14054899,0.00016659,2]
[408255476,1773323442663,-150.38339506,0.00016659,2]
[408255477,1773323442672,-150.0,0.00016659,2]
[408255478,1773323442682,-150.0,0.00016659,2]
[408255479,1773323442691,-150.0,0.00016659,2]
[408255480,1773323442700,-500.0,0.00016659,2]
[408255481,1773323442710,-500.0,0.00016659,2]
[408255482,1773323442880,-500.0,0.00016659,2]
[408255483,1773323442891,-4000.0,0.00016662,2]
[408255484,1773323442901,-360.72006406,0.00016668,2]
[408255485,1773323442911,-1500.0,0.00016668,2]
[408255486,1773323442920,-500.0,0.00016668,2]
[408255487,1773323442930,-500.0,0.00016712,2]
[408255488,1773323442941,-500.0,0.00016714,2]
[408255489,1773323442951,-150.0,0.00016714,2]
[408255490,1773323442960,-150.0,0.00016714,2]
[408255491,1773323442970,-200.0,0.00016714,2]
[408255492,1773323442979,-500.0,0.00016714,2]
[408255493,1773323442988,-500.0,0.00016714,2]
[408255494,1773323442997,-500.0,0.00016714,2]
[408255495,1773323443007,-500.0,0.00016767,2]